Workbook

Sheet Tax Calc
A3: 1) Click the button
A5: 2) Click on the cell C32 and using the drop-down arrow (box) please select one of the three (3) counties listed
A7: The current School District Millage Rate as of 2022-2023 will automatically display for the County selected in cell C36
A9: The current Public Library Millage Rate as of 2022-2023 will automatically display for the County selected in cell C38
A11: 3) Click on cell C34 and type in your Total Assessed Value as indicated on your most recent property tax bill
A13: YOUR SCHOOL DISTRICT PROPERTY TAX AMOUNT FOR 2022-2023 will display (ASSUMING NO TAX INCREASE) prior to Homestead / Farmstead Exclusion in cell C40
A15: 4) If you would like to see how a tax millage increase for your county would affect your property tax bill for 2023-2024 please click on cell C49
A16: and make a selection from the drop-down arrow (box)
A18: YOUR NEW SCHOOL DISTRICT PROPERTY TAX AMOUNT FOR 2023-2024 will display (INCLUDING TAX INCREASE selected) and including the Homestead / Farmstead Exclusion in cell C54
A20: The DOLLAR AMOUNT OF SCHOOL DISTRICT TAX INCREASE (DECREASE) of your selected COUNTY is displayed in cell C65
A22: PLEASE NOTE: Not all taxpayers qualify for the HOMESTEAD / FARMSTEAD EXCLUSION for their particular property
AA26: 0.001
V27: Carbon | W27: Luzerne | X27: Schuylkill | Y27: Carbon | Z27: Luzerne | AA27: Schuylkill
T28: 0 | U28: Current Tax Millage | V28: 0.0287095 | W28: 0.0088567 | X28: 0.0300749 | Y28: 0.0006092 | Z28: 0.0001879 | AA28: 0.0006831
T29: 1 | U29: 1 Mill Increase | V29: =IF(ISERROR((V28+$AA$26)),"-",(V28+$AA$26)) -> 0.0297095 | W29: =IF(ISERROR((W28+$AA$26)),"-",(W28+$AA$26)) -> 0.0098567 | X29: =IF(ISERROR((X28+$AA$26)),"-",(X28+$AA$26)) -> 0.0310749 | Y29: 0.0006092 | Z29: 0.0001879 | AA29: 0.0006831
T30: 2 | U30: 2 Mill Increase | V30: 0.0307095 | W30: 0.0108567 | X30: 0.0320749 | Y30: 0.0006092 | Z30: 0.0001879 | AA30: 0.0006831
F31: =IF(ISERROR((C32&A70)),"-",(C32&A70)) -> 2022-2023 | T31: 3 | U31: 3 Mill Increase | V31: 0.0317095 | W31: 0.0118567 | X31: 0.0330749 | Y31: 0.0006092 | Z31: 0.0001879 | AA31: 0.0006831
A32: Please select the county that your property resides in: | F32: =IF(ISERROR((C32&C49)),"-",(C32&C49)) -> 2023-2024 (Approved) | T32: 4 | U32: 4 Mill Increase | V32: 0.0327095 | W32: 0.0128567 | X32: 0.0340749 | Y32: 0.0006092 | Z32: 0.0001879 | AA32: 0.0006831
T33: 5 | U33: 5 Mill Increase | V33: 0.0337095 | W33: 0.0138567 | X33: 0.0350749 | Y33: 0.0006092 | Z33: 0.0001879 | AA33: 0.0006831
A34: Please enter your property's Total Assessed Value as indicated on your most current tax bill: | T34: 6 | U34: 6 Mill Increase | V34: 0.0347095 | W34: 0.0148567 | X34: 0.0360749 | Y34: 0.0006092 | Z34: 0.0001879 | AA34: 0.0006831
T35: 7 | U35: 7 Mill Increase | V35: 0.0357095 | W35: 0.0158567 | X35: 0.0370749 | Y35: 0.0006092 | Z35: 0.0001879 | AA35: 0.0006831
A36: Current School District Millage Rate for County selected (2022-2023) | C36: =IF(ISERROR((IF($C$32=B70,C70,IF($C$32=B71,C71,IF($C$32=B72,C72," "))))),"-",(IF($C$32=B70,C70,IF($C$32=B71,C71,IF($C$32=B72,C72," "))))) ->  | D36: mills | T36: 8 | U36: 8 Mill Increase | V36: 0.0367095 | W36: 0.0168567 | X36: 0.0380749 | Y36: 0.0006092 | Z36: 0.0001879 | AA36: 0.0006831
T37: 9 | U37: 9 Mill Increase | V37: 0.0377095 | W37: 0.0178567 | X37: 0.0390749 | Y37: 0.0006092 | Z37: 0.0001879 | AA37: 0.0006831
A38: Current Public Library Millage Rate for County selected (2022-2023) | C38: =IF(ISERROR((IF($C$32=B70,D70,IF($C$32=B71,D71,IF($C$32=B72,D72," "))))),"-",(IF($C$32=B70,D70,IF($C$32=B71,D71,IF($C$32=B72,D72," "))))) ->  | D38: mills | T38: 10 | U38: 10 Mill Increase | V38: 0.0387095 | W38: 0.0188567 | X38: 0.0400749 | Y38: 0.0006092 | Z38: 0.0001879 | AA38: 0.0006831
T39: 11 | U39: 11 Mill Increase | V39: 0.0397095 | W39: 0.0198567 | X39: 0.0410749 | Y39: 0.0006092 | Z39: 0.0001879 | AA39: 0.0006831
A40: YOUR SCHOOL DISTRICT PROPERTY TAX BILL FOR 2022-2023 prior to Homestead / Farmstead Exclusion | C40: =IF(ISERROR((C34*(C36+C38))),"-",(C34*(C36+C38))) -> - | T40: 12 | U40: 12 Mill Increase | V40: 0.0407095 | W40: 0.0208567 | X40: 0.0420749 | Y40: 0.0006092 | Z40: 0.0001879 | AA40: 0.0006831
T41: 13 | U41: 13 Mill Increase | V41: 0.0417095 | W41: 0.0218567 | X41: 0.0430749 | Y41: 0.0006092 | Z41: 0.0001879 | AA41: 0.0006831
T42: 14 | U42: 14 Mill Increase | V42: 0.0427095 | W42: 0.0228567 | X42: 0.0440749 | Y42: 0.0006092 | Z42: 0.0001879 | AA42: 0.0006831
A43: Less: Homestead / Farmstead Exclusion | C43: =IF(ISERROR(VLOOKUP(F31,NEWTAX,5,FALSE)),"-",(VLOOKUP(F31,NEWTAX,5,FALSE))) -> - | T43: 12 | U43: 12 Mill Increase | V43: 0.0437095 | W43: 0.0238567 | X43: 0.0450749 | Y43: 0.0006092 | Z43: 0.0001879 | AA43: 0.0006831
A46: YOUR SCHOOL DISTRICT PROPERTY TAX BILL FOR 2022-2023 including Homestead / Farmstead Exclusion | C46: =IFERROR(C40+C43,0) -> 0 | T46: 12 | U46: 12 Mill Increase | V46: 0.001 | W46: 0.001 | X46: 0.001 | Y46: 0.0006092 | Z46: 0.0001879 | AA46: 0.0006831
T48: 16 | U48: 16 Mill Increase | V48: =IF(ISERROR((V43+$AA$26)),"-",(V43+$AA$26)) -> 0.0447095 | W48: =IF(ISERROR((W43+$AA$26)),"-",(W43+$AA$26)) -> 0.0248567 | X48: =IF(ISERROR((X43+$AA$26)),"-",(X43+$AA$26)) -> 0.0460749 | Y48: 0.0006092 | Z48: 0.0001879 | AA48: 0.0006831
A49: Please select the tax millage increase (in mills) to see your 2023-2024 School District Property Tax | C49: 2023-2024 (Approved) | T49: 17 | U49: 17 Mill Increase | V49: 0.0457095 | W49: 0.0258567 | X49: 0.0470749 | Y49: 0.0006092 | Z49: 0.0001879 | AA49: 0.0006831
T50: 18 | U50: 18 Mill Increase | V50: 0.0467095 | W50: 0.0268567 | X50: 0.0480749 | Y50: 0.0006092 | Z50: 0.0001879 | AA50: 0.0006831
T51: 19 | U51: 19 Mill Increase | V51: 0.0477095 | W51: 0.0278567 | X51: 0.0490749 | Y51: 0.0006092 | Z51: 0.0001879 | AA51: 0.0006831
T52: 20 | U52: 20 Mill Increase | V52: 0.0487095 | W52: 0.0288567 | X52: 0.0500749 | Y52: 0.0006092 | Z52: 0.0001879 | AA52: 0.0006831
T53: 21 | U53: 21 Mill Increase | V53: 0.0497095 | W53: 0.0298567 | X53: 0.0510749 | Y53: 0.0006092 | Z53: 0.0001879 | AA53: 0.0006831
A54: YOUR SCHOOL DISTRICT PROPERTY TAX BILL FOR 2023-2024 prior to Homestead / Farmstead Exclusion | C54: =IF(ISERROR((VLOOKUP(F32,NEWTAX,4,FALSE)*$C$34)),"-",(VLOOKUP(F32,NEWTAX,4,FALSE)*$C$34)) -> - | T54: 22 | U54: 22 Mill Increase | V54: 0.0507095 | W54: 0.0308567 | X54: 0.0520749 | Y54: 0.0006092 | Z54: 0.0001879 | AA54: 0.0006831
T55: 23 | U55: 23 Mill Increase | V55: 0.0517095 | W55: 0.0318567 | X55: 0.0530749 | Y55: 0.0006092 | Z55: 0.0001879 | AA55: 0.0006831
A57: Less: *ESTIMATED Homestead / Farmstead Exclusion | C57: =IF(ISERROR(VLOOKUP(F32,NEWTAX,5,FALSE)),"-",(VLOOKUP(F32,NEWTAX,5,FALSE))) -> - | T57: 12 | U57: 12 Mill Increase | V57: 0.001 | W57: 0.001 | X57: 0.001 | Y57: 0.0006092 | Z57: 0.0001879 | AA57: 0.0006831
A60: YOUR SCHOOL DISTRICT PROPERTY TAX BILL FOR 2023-2024 including Homestead / Farmstead Exclusion | C60: =IFERROR(C54+C57,0) -> 0 | T60: 22 | U60: 22 Mill Increase | V60: 0.001 | W60: 0.001 | X60: 0.001 | Y60: 0.0006092 | Z60: 0.0001879 | AA60: 0.0006831
T62: 24 | U62: 24 Mill Increase | V62: =IF(ISERROR((V55+$AA$26)),"-",(V55+$AA$26)) -> 0.0527095 | W62: =IF(ISERROR((W55+$AA$26)),"-",(W55+$AA$26)) -> 0.0328567 | X62: =IF(ISERROR((X55+$AA$26)),"-",(X55+$AA$26)) -> 0.0540749 | Y62: 0.0006092 | Z62: 0.0001879 | AA62: 0.0006831
T63: 25 | U63: 25 Mill Increase | V63: 0.0537095 | W63: 0.0338567 | X63: 0.0550749 | Y63: 0.0006092 | Z63: 0.0001879 | AA63: 0.0006831
A65: DOLLAR AMOUNT OF TAX INCREASE (DECREASE) | C65: =IF(ISERROR((C60-C46)),"-",(C60-C46)) -> 0
C69: S.D. Property Tax | D69: Library | E69: C.L.R.
A70: 2022-2023 | B70: Carbon | C70: 0.030491 | D70: 0.0006092 | E70: 0.3 | T70: Carbon1 Mill Increase | U70: Carbon | V70: 1 Mill Increase | W70: 0.029806
A71: 2022-2023 | B71: Luzerne | C71: 0.012052 | D71: 0.0001879 | E71: 0.889 | T71: Carbon2 Mill Increase | U71: Carbon | V71: 2 Mill Increase | W71: 0.030806
A72: 2022-2023 | B72: Schuylkill | C72: 0.035985 | D72: 0.000638 | E72: 0.321 | T72: Carbon3 Mill Increase | U72: Carbon | V72: 3 Mill Increase | W72: 0.031806
A73: 2023-2024 | B73: Carbon | C73: 0.032287 | D73: 0.0006092 | E73: 0.243 | T73: Carbon4 Mill Increase | U73: Carbon | V73: 4 Mill Increase | W73: 0.032806
A74: 2023-2024 | B74: Luzerne | C74: 0.012529 | D74: 0.0001879 | E74: 0.76 | T74: Carbon5 Mill Increase | U74: Carbon | V74: 5 Mill Increase | W74: 0.033806
A75: 2023-2024 | B75: Schuylkill | C75: 0.038086 | D75: 0.000638 | E75: 0.262 | T75: Carbon6 Mill Increase | U75: Carbon | V75: 6 Mill Increase | W75: 0.034806
G76: Homestead | S76: Carbon13 Mill Increase | T76: Carbon | U76: 13 Mill Increase | V76: 0.041806
A77: Carbon | B77: 2022-2023 | C77: =A77&B77 -> Carbon2022-2023 | D77: 0.030491 | E77: 0.0006092 | F77: =D77+E77 -> 0.0311002 | G77: -447.58 | T77: Carbon14 Mill Increase | U77: Carbon | V77: 14 Mill Increase | W77: 0.042806
A78: Carbon | B78: 2023-2024 (Approved) | C78: =A78&B78 -> Carbon2023-2024 (Approved) | D78: 0.031492 | E78: 0.0006092 | F78: =D78+E78 -> 0.0321012 | G78: -450.81 | T78: Carbon15 Mill Increase | U78: Carbon | V78: 15 Mill Increase | W78: 0.043806
A79: Luzerne | B79: 2022-2023 | C79: =A79&B79 -> Luzerne2022-2023 | D79: 0.012052 | E79: 0.0001879 | F79: =D79+E79 -> 0.0122399 | G79: -447.56 | T79: Carbon18 Mill Increase | U79: Carbon | V79: 18 Mill Increase | W79: 0.046806
A80: Luzerne | B80: 2023-2024 (Approved) | C80: Luzerne2023-2024 (Approved) | D80: 0.01222 | E80: 0.0001879 | F80: 0.0124079 | G80: -450.81 | T80: Carbon19 Mill Increase | U80: Carbon | V80: 19 Mill Increase | W80: 0.047806
A81: Schuylkill | B81: 2022-2023 | C81: =A81&B81 -> Schuylkill2022-2023 | D81: 0.035985 | E81: 0.000638 | F81: =D81+E81 -> 0.036623 | G81: -447.58 | T81: Carbon22 Mill Increase | U81: Carbon | V81: 22 Mill Increase | W81: 0.050806
A82: Schuylkill | B82: 2023-2024 (Approved) | C82: =A82&B82 -> Schuylkill2023-2024 (Approved) | D82: 0.037148 | E82: 0.000638 | F82: =D82+E82 -> 0.037786 | G82: -450.79 | T82: Carbon23 Mill Increase | U82: Carbon | V82: 23 Mill Increase | W82: 0.051806
S83: Luzerne1 Mill Increase | T83: Luzerne | U83: 1 Mill Increase | V83: 0.175392
S84: Luzerne2 Mill Increase | T84: Luzerne | U84: 2 Mill Increase | V84: 0.176392
S85: Luzerne3 Mill Increase | T85: Luzerne | U85: 3 Mill Increase | V85: 0.177392
S86: Luzerne4 Mill Increase | T86: Luzerne | U86: 4 Mill Increase | V86: 0.178392
S87: Luzerne5 Mill Increase | T87: Luzerne | U87: 5 Mill Increase | V87: 0.179392
S88: Luzerne6 Mill Increase | T88: Luzerne | U88: 6 Mill Increase | V88: 0.180392
S89: Luzerne7 Mill Increase | T89: Luzerne | U89: 7 Mill Increase | V89: 0.181392
S90: Luzerne8 Mill Increase | T90: Luzerne | U90: 8 Mill Increase | V90: 0.182392
S91: Luzerne9 Mill Increase | T91: Luzerne | U91: 9 Mill Increase | V91: 0.183392
S92: Luzerne10 Mill Increase | T92: Luzerne | U92: 10 Mill Increase | V92: 0.184392
S93: Luzerne11 Mill Increase | T93: Luzerne | U93: 11 Mill Increase | V93: 0.185392
S94: Luzerne12 Mill Increase | T94: Luzerne | U94: 12 Mill Increase | V94: 0.186392
S95: Luzerne13 Mill Increase | T95: Luzerne | U95: 13 Mill Increase | V95: 0.187392
S96: Luzerne14 Mill Increase | T96: Luzerne | U96: 14 Mill Increase | V96: 0.188392
S97: Luzerne15 Mill Increase | T97: Luzerne | U97: 15 Mill Increase | V97: 0.189392
S98: Luzerne16 Mill Increase | T98: Luzerne | U98: 16 Mill Increase | V98: 0.190392
S99: Luzerne17 Mill Increase | T99: Luzerne | U99: 17 Mill Increase | V99: 0.191392
S100: Luzerne18 Mill Increase | T100: Luzerne | U100: 18 Mill Increase | V100: 0.192392
S101: Luzerne19 Mill Increase | T101: Luzerne | U101: 19 Mill Increase | V101: 0.193392
S102: Luzerne20 Mill Increase | T102: Luzerne | U102: 20 Mill Increase | V102: 0.194392
S103: Luzerne21 Mill Increase | T103: Luzerne | U103: 21 Mill Increase | V103: 0.195392
S104: Luzerne22 Mill Increase | T104: Luzerne | U104: 22 Mill Increase | V104: 0.196392
S105: Luzerne23 Mill Increase | T105: Luzerne | U105: 23 Mill Increase | V105: 0.197392
S106: Luzerne24 Mill Increase | T106: Luzerne | U106: 24 Mill Increase | V106: 0.198392
S107: Luzerne25 Mill Increase | T107: Luzerne | U107: 25 Mill Increase | V107: 0.199392
S108: Schuylkill1 Mill Increase | T108: Schuylkill | U108: 1 Mill Increase | V108: 0.036638
S109: Schuylkill2 Mill Increase | T109: Schuylkill | U109: 2 Mill Increase | V109: 0.037638
S110: Schuylkill3 Mill Increase | T110: Schuylkill | U110: 3 Mill Increase | V110: 0.038638
S111: Schuylkill4 Mill Increase | T111: Schuylkill | U111: 4 Mill Increase | V111: 0.039638
S112: Schuylkill5 Mill Increase | T112: Schuylkill | U112: 5 Mill Increase | V112: 0.040638
S113: Schuylkill6 Mill Increase | T113: Schuylkill | U113: 6 Mill Increase | V113: 0.041638
S114: Schuylkill7 Mill Increase | T114: Schuylkill | U114: 7 Mill Increase | V114: 0.042638
S115: Schuylkill8 Mill Increase | T115: Schuylkill | U115: 8 Mill Increase | V115: 0.043638
S116: Schuylkill9 Mill Increase | T116: Schuylkill | U116: 9 Mill Increase | V116: 0.044638
S117: Schuylkill10 Mill Increase | T117: Schuylkill | U117: 10 Mill Increase | V117: 0.045638
S118: Schuylkill11 Mill Increase | T118: Schuylkill | U118: 11 Mill Increase | V118: 0.046638
S119: Schuylkill12 Mill Increase | T119: Schuylkill | U119: 12 Mill Increase | V119: 0.047638
S120: Schuylkill13 Mill Increase | T120: Schuylkill | U120: 13 Mill Increase | V120: 0.048638
S121: Schuylkill14 Mill Increase | T121: Schuylkill | U121: 14 Mill Increase | V121: 0.049638
S122: Schuylkill15 Mill Increase | T122: Schuylkill | U122: 15 Mill Increase | V122: 0.050638
S123: Schuylkill16 Mill Increase | T123: Schuylkill | U123: 16 Mill Increase | V123: 0.051638
S124: Schuylkill17 Mill Increase | T124: Schuylkill | U124: 17 Mill Increase | V124: 0.052638
S125: Schuylkill18 Mill Increase | T125: Schuylkill | U125: 18 Mill Increase | V125: 0.053638
S126: Schuylkill19 Mill Increase | T126: Schuylkill | U126: 19 Mill Increase | V126: 0.054638
S127: Schuylkill20 Mill Increase | T127: Schuylkill | U127: 20 Mill Increase | V127: 0.055638
S128: Schuylkill21 Mill Increase | T128: Schuylkill | U128: 21 Mill Increase | V128: 0.056638
S129: Schuylkill22 Mill Increase | T129: Schuylkill | U129: 22 Mill Increase | V129: 0.057638
S130: Schuylkill23 Mill Increase | T130: Schuylkill | U130: 23 Mill Increase | V130: 0.058638
S131: Schuylkill24 Mill Increase | T131: Schuylkill | U131: 24 Mill Increase | V131: 0.059638
S132: Schuylkill25 Mill Increase | T132: Schuylkill | U132: 25 Mill Increase | V132: 0.060638
